fUSD/lending_fUSD_20251026
["ID","MTS","AMOUNT","RATE_DAILY","PERIOD"]
[392465587,1761517834534,-10.1711642,0.00038781,30]
[392465588,1761517834543,-500.0,0.00038795,30]
[392465589,1761517834552,-1243.24427233,0.000388,50]
[392465590,1761517834563,-8756.75572767,0.000388,50]
[392465591,1761517834572,-9241.27073721,0.00038815,3]
[392465592,1761517834581,-1100.0,0.00038825,30]
[392465593,1761517834590,-500.0,0.00038827,2]
[392465594,1761517834599,-1281.17515545,0.00038827,30]
[392465595,1761517834609,-200.0,0.00038827,30]
[392465596,1761517834617,-300.0,0.00038827,30]
[392465597,1761517834626,-500.0,0.00038827,30]
[392465598,1761517834636,-605.24925022,0.00038827,30]
[392465599,1761517834645,-726.97094723,0.00038827,10]
[392465600,1761517834656,-13512.10763467,0.00038827,2]
[392465601,1761517834672,-6923.08734579,0.00038827,2]
[392465605,1761517837510,-150.0,0.00035233,3]
[392465606,1761517837520,-391.1301,0.00038827,2]
[392465607,1761517837532,-1557.49279154,0.00038827,2]
[392465608,1761517837542,-2090.0,0.00038827,2]
[392465609,1761517837595,-281.55,0.00038827,2]
[392465610,1761517837611,-1665.8,0.00038827,2]
[392465611,1761517837683,-26434.4623289,0.00038827,2]
[392465612,1761517837693,-500.0,0.00038827,10]
[392465613,1761517837703,-4999.999999,0.00038827,2]
[392465614,1761517837712,-194.6882885,0.00038827,10]
[392465615,1761517837721,-280.64492388,0.00038827,10]
[392465616,1761517837731,-505.91234781,0.00038827,2]
[392465617,1761517837740,-1100.0,0.00038829,30]
[392465618,1761517837750,-194.04,0.00038833,2]
[392465619,1761517837759,-1200.0,0.0003886,30]
[392465620,1761517837768,-2893.99600814,0.00038903,2]
[392465621,1761517837779,-2875.5170958,0.00038903,2]
[392465622,1761517837788,-500.0,0.0003894,30]
[392465623,1761517837798,-700.0,0.00038964,30]
[392465624,1761517837807,-500.0,0.00038966,30]
[392465625,1761517837819,-197.34812686,0.00039148,30]
[392465626,1761517837830,-423.28013338,0.00039148,30]
[392465627,1761517837844,-479.37173976,0.00039148,30]
[392465628,1761517837854,-31.17503574,0.00039155,30]
[392465629,1761517837865,-468.82496426,0.00039155,30]
[392465630,1761517837874,-150.0,0.00039163,7]
[392465631,1761517837883,-500.0,0.00039174,30]
[392465632,1761517837893,-700.0,0.0003924,30]
[392465633,1761517837903,-500.0,0.00039262,30]
[392465634,1761517837913,-166.66,0.00039277,2]
[392465635,1761517837922,-1100.0,0.00039317,30]
[392465637,1761517837931,-500.0,0.00039348,30]
[392465639,1761517837941,-2097.97440526,0.00039355,2]
[392465641,1761517837950,-5906.78530408,0.00039362,3]
[392465643,1761517837963,-3188.975797,0.00039362,3]
[392465645,1761517837974,-145.50963613,0.00039362,3]
[392465647,1761517837983,-4397.10458604,0.00039372,2]
[392465649,1761517837994,-400.40851396,0.00039372,2]
[392465651,1761517838003,-168.0,0.00039376,2]
[392465653,1761517838014,-233.23148604,0.0003938,30]
[392465662,1761517839624,-266.76851396,0.0003938,30]
[392465663,1761517839633,-880.72188604,0.00039385,30]
[392465664,1761517839716,-219.27811396,0.00039385,30]
[392465665,1761517839726,-500.0,0.00039433,30]
[392465666,1761517839735,-348.46021998,0.00039448,30]
[392465667,1761517839790,-851.53978002,0.00039448,30]
[392465668,1761517839800,-18482.5414744,0.00039474,3]
[392465669,1761517839810,-999.99,0.00039484,2]
[392465670,1761517839819,-4342.45238201,0.00039484,2]
[392465671,1761517839832,-5657.53761799,0.00039484,2]
[392465672,1761517839842,-8191.53,0.00039484,2]
[392465673,1761517839851,-551.4,0.00039484,2]
[392465674,1761517839860,-8432.05,0.00039484,2]
[392465675,1761517839870,-5186.58738558,0.00039484,2]
[392465676,1761517839882,-1051.74261442,0.00039484,2]
[392465677,1761517839891,-704.25738558,0.00039484,2]
[392465678,1761517839945,-1397.8791,0.00039484,2]
[392465679,1761517839960,-1057.86117463,0.00039484,2]
[392465680,1761517839974,-501.3495,0.00039484,2]
[392465689,1761517842681,-333.44283979,0.00039484,2]
[392465690,1761517842691,-328.26696821,0.00039509,30]
[392465691,1761517842704,-171.73303179,0.00039509,30]
[392465692,1761517842713,-328.26696821,0.00039571,30]
[392465693,1761517842731,-262.734,0.00039571,30]
[392465694,1761517842745,-108.99903179,0.00039571,30]
[392465695,1761517842758,-200.93106749,0.00039607,30]
[392465696,1761517842988,-636.95363033,0.00039607,30]
[392465719,1761517845576,-153.0,0.00037884,90]
[392465720,1761517845588,-147.57795713,0.00037884,90]
[392465721,1761517845601,-5.42204287,0.00037884,90]
[392465722,1761517845612,-153.0,0.00037884,90]
[392465723,1761517845623,-362.11530218,0.00039607,30]
[392465724,1761517845634,-210.208763,0.00039607,120]
[392465725,1761517845644,-210.208763,0.00039607,120]
[392465726,1761517845654,-12.59507652,0.00039607,120]
[392465727,1761517845700,-197.61368648,0.00039607,120]
[392465728,1761517845712,-210.208763,0.00039607,120]
[392465729,1761517845722,-151.0,0.00039607,120]
[392465730,1761517845733,-151.0,0.00039607,120]
[392465731,1761517845743,-151.0,0.00039607,120]
[392465732,1761517845754,-25.70523069,0.000397,2]
[392465733,1761517845914,-626.8265502,0.000397,2]
[392465734,1761517845928,-1347.46821911,0.000397,2]
[392465735,1761517845939,-500.0,0.00039723,30]
[392465736,1761517845951,-500.0,0.00039724,30]
[392465737,1761517845962,-500.0,0.00039726,15]
[392465738,1761517845973,-491.78178089,0.00039726,15]
[392465739,1761517845987,-8.21821911,0.00039726,15]
[392465740,1761517845997,-348.51850743,0.00039726,15]
[392465741,1761517846007,-500.0,0.00039736,30]
[392465742,1761517846020,-500.0,0.00039738,30]
[392465743,1761517846037,-500.0,0.00039767,7]
[392465744,1761517846048,-500.0,0.00039767,9]
[392465745,1761517846059,-500.0,0.00039767,9]
[392465746,1761517846071,-1100.0,0.00039779,30]
[392465747,1761517846083,-184.16897843,0.00039826,3]
[392465757,1761518037761,178.06,0.00013699,2]
[392465758,1761518427049,1455.09594,0.0003,120]
[392465761,1761518754100,-530.06319516,0.00018181,2]
[392465764,1761518802095,-55.94680484,0.00018181,2]
[392465765,1761518802117,-264.41020927,0.00019138,2]
[392465767,1761518833091,-321.59979073,0.00019138,2]
[392465768,1761518833112,-163.23234734,0.00020095,2]
[392465779,1761518955096,-422.77765266,0.00020095,2]
[392465780,1761518955118,-178.06,0.00020187,2]
[392465781,1761518955141,-586.01,0.00021052,2]
[392465782,1761518955161,-215.27123608,0.00021909,2]
[392465783,1761518955182,-586.01,0.00022009,2]
[392465784,1761518955203,-289.2343238,0.00022966,2]
[392465785,1761518957134,-296.7756762,0.00022966,2]
[392465786,1761518957155,-586.01,0.00023923,2]
[392465787,1761518957182,-586.01,0.0002488,2]
[392465788,1761518957203,-586.01,0.00025837,2]
[392465789,1761518957223,-35.65752442,0.00026676,2]
[392465795,1761519031783,-142.40247558,0.00026676,2]
[392465796,1761519031793,-312.75257414,0.00026794,2]
[392465797,1761519031925,-273.25742586,0.00026794,2]
[392465798,1761519031934,-586.01,0.00027751,2]
[392465799,1761519031943,-586.01,0.00028708,2]
[392465800,1761519031953,-319.16479733,0.00029344,2]
[392465801,1761519031962,-586.01,0.00029665,2]
[392465802,1761519031971,-586.01,0.00030622,2]
[392465803,1761519031980,-150.0,0.00031286,2]
[392465804,1761519031990,-510.519199,0.0003142,2]
[392465805,1761519031999,-586.01,0.00031578,2]
[392465806,1761519032009,-182.52984056,0.00032,120]
[392465807,1761519032019,-170.23429058,0.00032,120]
[392465808,1761519032028,-197.76284812,0.00032,120]
[392465809,1761519032037,-1065.85701731,0.00032,120]
[392465810,1761519032046,-3395.0,0.000322,5]
[392465811,1761519032055,-586.01,0.00032535,2]
[392465812,1761519032065,-197.76284812,0.00033,120]
[392465813,1761519032074,-1065.85701731,0.00033,120]
[392465814,1761519032083,-178.06,0.00033165,2]
[392465815,1761519032092,-586.01,0.00033492,2]
[392465816,1761519032102,-197.76284812,0.000339,120]
[392465817,1761519032111,-1065.85701731,0.000339,120]
[392465818,1761519032121,-586.01,0.00034449,2]
[392465819,1761519032131,-1767.32,0.00034696,2]
[392465820,1761519032140,-150.0,0.00034748,2]
[392465821,1761519032149,-1065.85701731,0.00035,120]
[392465822,1761519032158,-700.0,0.0003534,30]
[392465823,1761519032167,-1266.0,0.00035368,2]
[392465824,1761519032177,-700.0,0.00035375,30]
[392465825,1761519032188,-500.0,0.0003538,30]
[392465826,1761519032197,-586.01,0.00035406,2]
[392465827,1761519032207,-500.0,0.00035411,30]
[392465828,1761519032216,-500.0,0.00035466,30]
[392465829,1761519032225,-500.0,0.00035476,30]
[392465830,1761519032234,-6302.32,0.00035511,2]
[392465831,1761519032243,-500.0,0.00035564,30]
[392465832,1761519032252,-700.0,0.00035695,30]
[392465833,1761519032261,-700.0,0.00035742,30]
[392465834,1761519032270,-500.0,0.00035753,30]
[392465835,1761519032279,-500.0,0.00035795,30]
[392465836,1761519032288,-500.0,0.00035877,30]
[392465837,1761519032297,-500.0,0.00035881,30]
[392465838,1761519032306,-500.0,0.0003589,30]
[392465839,1761519032315,-500.0,0.00035892,30]
[392465840,1761519032324,-1000.0,0.000359,2]
[392465841,1761519032334,-500.0,0.00035939,30]
[392465842,1761519032343,-500.0,0.00035997,30]
[392465843,1761519032353,-500.0,0.00035997,30]
[392465844,1761519032361,-500.0,0.00035999,9]
[392465845,1761519032371,-500.0,0.00035999,7]
[392465846,1761519032381,-500.0,0.00035999,15]
[392465847,1761519032391,-174.395763,0.00035999,7]
[392465848,1761519032400,-500.0,0.00035999,15]
[392465849,1761519032409,-612.84786107,0.00035999,7]
[392465850,1761519032418,-60.51040193,0.00035999,15]
[392465851,1761519032430,-439.48959807,0.00035999,15]
[392465852,1761519032439,-500.0,0.00035999,15]
[392465853,1761519032448,-500.0,0.00035999,15]
[392465854,1761519032457,-500.0,0.00035999,15]
[392465855,1761519032467,-500.0,0.00035999,15]
[392465856,1761519032476,-500.0,0.00035999,15]
[392465857,1761519032486,-500.0,0.00035999,15]
[392465858,1761519032496,-500.0,0.00035999,15]
[392465859,1761519032505,-500.0,0.00035999,15]
[392465860,1761519032515,-500.0,0.00035999,15]
[392465862,1761519032524,-352.16037412,0.00035999,15]
[392465863,1761519032533,-500.0,0.00035999,15]
[392465865,1761519032542,-1065.85701731,0.00036,120]
[392465867,1761519032551,-512.575,0.00036,43]
[392465869,1761519032560,-177.82,0.00036,43]
[392465871,1761519032570,-500.0,0.00036211,30]
[392465873,1761519032579,-167.33,0.00036272,2]
[392465875,1761519032588,-3025.92,0.00036291,2]
[392465877,1761519032597,-185.27,0.00036303,2]
[392465879,1761519032607,-500.0,0.00036317,30]
[392465881,1761519032616,-999.0,0.00036317,3]
[392465883,1761519032626,-586.01,0.00036363,2]
[392465885,1761519032635,-700.0,0.00036373,30]
[392465887,1761519032644,-500.0,0.00036398,30]
[392465889,1761519032653,-500.0,0.00036408,30]
[392465891,1761519032662,-525.06,0.00036457,2]
[392465893,1761519032672,-700.0,0.00036517,30]
[392465895,1761519032681,-700.0,0.00036617,30]
[392465897,1761519032690,-500.0,0.00036694,30]
[392465899,1761519032699,-500.0,0.00036764,30]
[392465901,1761519032708,-700.0,0.00036885,30]
[392465903,1761519032717,-500.0,0.00036892,30]
[392465905,1761519032726,-500.0,0.00037066,30]
[392465907,1761519032739,-500.0,0.00037072,30]
[392465909,1761519032749,-700.0,0.00037168,30]
[392465911,1761519032758,-700.0,0.00037193,30]
[392465927,1761519032901,-500.0,0.00037216,30]
[392465929,1761519032911,-700.0,0.00037353,30]
[392465931,1761519032921,-500.0,0.00037412,30]
[392465933,1761519032930,-500.0,0.00037422,30]
[392465935,1761519032939,-700.0,0.00037438,30]
[392465937,1761519032948,-500.0,0.00037516,30]
[392465939,1761519032957,-500.0,0.00037539,30]
[392465941,1761519032967,-500.0,0.00037547,30]
[392465943,1761519032977,-500.0,0.0003761,30]
[392465945,1761519032986,-700.0,0.00037683,30]
[392465947,1761519032994,-500.0,0.00037691,30]
[392465949,1761519033003,-151.0,0.00037714,2]
[392465951,1761519033012,-151.0,0.00037714,2]
[392465953,1761519033021,-151.0,0.00037714,2]
[392465955,1761519033030,-151.0,0.00037714,2]
[392465956,1761519033039,-151.0,0.00037714,2]
[392465957,1761519033048,-151.0,0.00037714,2]
[392465958,1761519033057,-151.0,0.00037714,2]
[392465959,1761519033069,-151.0,0.00037714,2]
[392465960,1761519033078,-151.0,0.00037714,2]
[392465961,1761519033087,-151.0,0.00037714,2]
[392465962,1761519033096,-151.0,0.00037714,2]
[392465963,1761519033105,-151.0,0.00037714,2]
[392465964,1761519033114,-151.0,0.00037714,2]
[392465965,1761519033123,-151.0,0.00037714,2]
[392465966,1761519033133,-151.0,0.00037714,2]
[392465967,1761519033143,-151.0,0.00037714,2]
[392465968,1761519033151,-151.0,0.00037714,2]
[392465969,1761519033160,-182.34841251,0.00037714,2]
[392465970,1761519033169,-700.0,0.00037718,30]
[392465971,1761519033179,-260.48,0.00037736,14]
[392465972,1761519033188,-9279.34,0.00037737,2]
[392465973,1761519033197,-500.0,0.00037755,30]
[392465974,1761519033206,-525.06,0.00037824,2]
[392465975,1761519033215,-500.0,0.00037881,30]
[392465976,1761519033225,-500.0,0.00037907,30]
[392465977,1761519033234,-700.0,0.00037973,30]
[392465978,1761519033243,-700.0,0.00037975,30]
[392465979,1761519033252,-260.48,0.0003801,14]
[392465980,1761519033260,-500.0,0.00038079,30]
[392465981,1761519033270,-500.0,0.00038213,30]
[392465982,1761519033279,-500.0,0.00038214,30]
[392465983,1761519033288,-176.5,0.00038236,2]
[392465984,1761519033297,-500.0,0.00038238,30]
[392465985,1761519033306,-500.0,0.00038244,30]
[392465986,1761519033315,-220.51270577,0.00038252,30]
[392465987,1761519033324,-260.48,0.00038284,14]
[392465988,1761519033333,-500.0,0.00038311,30]
[392465989,1761519033343,-700.0,0.00038338,30]
[392465990,1761519033352,-500.0,0.00038394,30]
[392465991,1761519033361,-699.03,0.000384,7]
[392465992,1761519033370,-502.89132274,0.00038429,30]
[392465993,1761519033381,-500.0,0.00038508,30]
[392465994,1761519033390,-500.0,0.0003853,30]
[392465995,1761519033399,-500.0,0.0003858,30]
[392465996,1761519033409,-500.0,0.00038602,30]
[392465997,1761519033417,-700.0,0.00038605,30]
[392465998,1761519033427,-220.0,0.00038627,4]
[392465999,1761519033436,-700.0,0.00038631,30]
[392466000,1761519033445,-993.21,0.00038678,2]
[392466001,1761519033453,-1556.33,0.00038678,2]
[392466002,1761519033462,-999.99,0.00038678,2]
[392466003,1761519033472,-150.99,0.00038678,2]
[392466004,1761519033481,-500.0,0.00038721,30]
[392466005,1761519033490,-500.0,0.00038799,9]
[392466006,1761519033500,-4548.0,0.000388,50]
[392466007,1761519033509,-161.36175,0.00038815,2]
[392466008,1761519033518,-200.0,0.00038821,30]
[392466009,1761519033528,-300.0,0.00038821,30]
[392466010,1761519033540,-280.979,0.00038821,2]
[392466011,1761519033550,-150.0,0.00038821,2]
[392466012,1761519033559,-5732.96644421,0.0003885,2]
[392466035,1761519037690,-500.0,0.00038073,20]
[392466212,1761519039809,-639.39012004,0.00038073,20]
[392466214,1761519039818,-1299.61837936,0.00038073,20]
[392466216,1761519039827,-6348.93229474,0.0003885,2]
[392466219,1761519039838,-713.4176413,0.0003885,2]
[392466221,1761519039849,-3384.7833774,0.0003885,2]
[392466228,1761519040976,-2857.46,0.0003885,2]
[392466229,1761519040988,-7898.12718598,0.0003885,2]
[392466230,1761519040997,-700.0,0.0003885,30]
[392466231,1761519041007,-700.0,0.00038875,30]
[392466232,1761519041016,-700.0,0.00038916,30]
[392466233,1761519041027,-500.0,0.00039008,30]
[392466234,1761519041039,-500.0,0.00039014,30]
[392466235,1761519041049,-500.0,0.0003911,30]
[392466236,1761519041059,-700.0,0.00039115,30]
[392466237,1761519041069,-700.0,0.00039187,30]
[392466238,1761519041080,-525.06,0.00039191,2]
[392466239,1761519041090,-1877.0,0.000392,2]
[392466240,1761519041101,-500.0,0.0003927,30]
[392466241,1761519041111,-759.20105349,0.00039331,2]
[392466242,1761519041120,-150.0,0.00039347,7]
[392466243,1761519041130,-500.0,0.00039381,30]
[392466244,1761519041140,-17596.4648776,0.00039506,2]
[392466245,1761519041149,-168.7576996,0.00039506,2]
[392466246,1761519041159,-332.3630218,0.00039506,2]
[392466247,1761519041168,-500.0,0.00039544,30]
[392466248,1761519041177,-500.0,0.0003959,30]
[392466249,1761519041187,-178.06,0.00039654,2]
[392466250,1761519041196,-500.0,0.00039656,30]
[392466251,1761519041207,-700.0,0.00039697,30]
[392466252,1761519041216,-193.83596,0.000397,2]
[392466253,1761519041225,-1321.0,0.00039726,120]
[392466254,1761519041235,-700.0,0.00039765,30]
[392466255,1761519041245,-500.0,0.00039825,3]
[392466256,1761519041258,-152.0,0.00039826,7]
[392466257,1761519041269,-151.48930932,0.00039826,7]
[392466258,1761519041281,-1000.0,0.00039836,2]
[392466259,1761519041295,-3492.2992539,0.000399,15]
[392466260,1761519041307,-176.5,0.00039931,2]
[392466261,1761519041319,-269.83735732,0.00039973,5]
[392466262,1761519041329,-700.0,0.00039979,30]
[392466263,1761519041340,-801.64464025,0.00039982,30]
[392466264,1761519041349,-800.0,0.00039984,30]
[392466265,1761519041360,-500.0,0.00039996,30]
[392466266,1761519041371,-500.0,0.00039999,9]
[392466267,1761519041381,-178.86356973,0.00039999,31]
[392466268,1761519041392,-500.0,0.00039999,31]
[392466269,1761519041404,-231.77630781,0.00039999,31]
[392466270,1761519041415,-282.62712502,0.00039999,31]
[392466271,1761519041429,-37178.48979372,0.0004,120]
[392466272,1761519041440,-214.4310381,0.0004,30]
[392466273,1761519041450,-3107.41,0.0004,120]
[392466274,1761519041461,-150.0,0.00040044,4]
[392466275,1761519041472,-150.0,0.00040044,4]
[392466276,1761519041485,-150.0,0.00040044,4]
[392466277,1761519041496,-150.0,0.00040044,4]
[392466278,1761519041507,-150.0,0.00040044,4]
[392466279,1761519041518,-150.0,0.00040044,4]
[392466280,1761519041528,-151.58704345,0.00040044,4]
[392466281,1761519041539,-150.0,0.00040044,4]
[392466282,1761519041549,-150.80935588,0.00040044,4]
[392466283,1761519041559,-150.0,0.00040044,4]
[392466284,1761519041568,-150.0,0.00040044,4]
[392466285,1761519041578,-150.0,0.00040044,4]
[392466286,1761519041589,-500.0,0.00040106,30]
[392466287,1761519041600,-500.0,0.00040111,30]
[392466288,1761519041610,-500.0,0.00040227,30]
[392466289,1761519041620,-500.0,0.00040238,30]
[392466290,1761519041631,-500.0,0.00040253,30]
[392466291,1761519041642,-500.0,0.0004027,30]
[392466292,1761519041652,-500.0,0.00040286,30]
[392466293,1761519041663,-800.0,0.00040325,30]
[392466294,1761519041673,-692.5952781,0.00040448,30]
[392466295,1761519041684,-3492.29925389,0.00040456,15]
[392466296,1761519041695,-502.50769037,0.00040459,30]
[392466297,1761519041708,-166.66,0.00040493,2]
[392466298,1761519041719,-4008.16795906,0.000405,120]
[392466299,1761519041733,-512.18496225,0.00040527,30]
[392466300,1761519041744,-525.06,0.00040558,2]
[392466301,1761519041755,-807.0477278,0.0004056,30]
[392466302,1761519041765,-947.68879924,0.00040595,30]
[392466303,1761519041776,-974.47304824,0.00040766,2]
[392466304,1761519041787,-167.33,0.00040806,2]
[392466305,1761519041798,-2500.0,0.00040911,2]
[392466306,1761519041811,-3492.29925389,0.00041011,15]
[392466307,1761519041822,-300.0,0.00041096,120]
[392466308,1761519041833,-1127.0,0.000411,2]
[392466309,1761519041844,-373.0,0.000411,2]
[392466310,1761519041854,-500.0,0.000411,2]
[392466311,1761519041865,-3492.29925389,0.00041567,15]
[392466312,1761519041875,-176.5,0.00041626,2]
[392466313,1761519041886,-193.83596,0.000417,2]
[392466314,1761519041897,-166.66,0.00041709,2]
[392466315,1761519041907,-2500.0,0.00041797,14]
[392466316,1761519041917,-191.82334993,0.00041797,14]
[392466317,1761519041928,-2128.00034721,0.00041797,14]
[392466318,1761519041939,-150.36784563,0.00041918,7]
[392466319,1761519041949,-150.79851215,0.00041918,7]
[392466320,1761519041960,-150.0,0.00041918,7]
[392466321,1761519041972,-459.99435518,0.00041918,7]
[392466322,1761519041986,-40.00564482,0.00041918,7]
[392466323,1761519041998,-297.90437457,0.00041918,120]
[392466324,1761519042011,-202.09562543,0.00041918,120]
[392466325,1761519042021,-500.0,0.00041918,7]
[392466326,1761519042031,-396.98457547,0.00041918,7]
[392466332,1761519043077,-103.01542453,0.00041918,7]
[392466333,1761519043087,-246.20171572,0.00041918,7]
[392466334,1761519043097,-500.0,0.00041918,7]
[392466335,1761519043107,-150.0,0.00041918,7]
[392466336,1761519043117,-500.0,0.00041918,7]
[392466337,1761519043128,-150.0,0.00041918,7]
[392466338,1761519043143,-150.6120722,0.00041918,7]
[392466339,1761519043153,-150.0,0.00041918,7]
[392466340,1761519043164,-300.0,0.00041918,7]
[392466341,1761519043175,-201.25700237,0.00041918,7]
[392466342,1761519043186,-200.0,0.00041918,7]
[392466343,1761519043196,-3294.0,0.00041918,7]
[392466344,1761519043206,-179.69422381,0.00041918,60]
[392466345,1761519043216,-500.0,0.00041918,2]
[392466346,1761519043226,-500.0,0.00041918,7]
[392466347,1761519043236,-155.47205385,0.00041918,7]
[392466348,1761519043246,-500.0,0.00041918,7]
[392466349,1761519043259,-500.0,0.00041918,7]
[392466350,1761519043271,-150.55573093,0.00041918,30]
[392466351,1761519043280,-150.0,0.00041918,30]
[392466352,1761519043290,-262.45325951,0.00041918,30]
[392466353,1761519043301,-150.0,0.00041918,30]
[392466354,1761519043310,-258.18735467,0.00041918,30]
[392466355,1761519043320,-153.93268946,0.00041918,30]
[392466356,1761519043331,-209.69183086,0.00041918,30]
[392466357,1761519043341,-500.0,0.00041918,30]
[392466358,1761519043354,-525.06,0.00041925,2]
[392466359,1761519043364,-150.0,0.00041945,7]
[392466360,1761519043374,-500.0,0.00041945,7]
[392466361,1761519043387,-500.0,0.00041945,120]
[392466362,1761519043397,-500.0,0.00041945,7]
[392466363,1761519043407,-518.0077377,0.00041945,7]
[392466364,1761519043417,-500.0,0.00041945,7]
[392466365,1761519043427,-150.0,0.00041945,7]
[392466366,1761519043438,-500.0,0.00041945,7]
[392466367,1761519043448,-200.0,0.00041945,7]
[392466368,1761519043459,-150.0,0.00041945,7]
[392466369,1761519043469,-300.0,0.00041945,7]
[392466370,1761519043480,-3294.0,0.00041945,7]
[392466371,1761519043490,-500.0,0.00041945,2]
[392466372,1761519043500,-500.0,0.00041945,7]
[392466373,1761519043510,-500.0,0.00041945,7]
[392466374,1761519043520,-500.0,0.00041945,7]
[392466375,1761519043530,-150.0,0.00041945,30]
[392466376,1761519043541,-500.0,0.00041945,30]
[392466377,1761519043551,-527.89743815,0.00041973,7]
[392466379,1761519043561,-585.37370516,0.00041973,120]
[392466381,1761519043571,-500.0,0.00041973,7]
[392466383,1761519043580,-500.0,0.00041973,7]
[392466385,1761519043590,-150.0,0.00041973,7]
[392466387,1761519043600,-500.0,0.00041973,7]
[392466390,1761519043610,-150.0,0.00041973,7]
[392466393,1761519043619,-300.0,0.00041973,7]
[392466395,1761519043630,-3294.0,0.00041973,7]
[392466397,1761519043642,-500.0,0.00041973,2]
[392466399,1761519043653,-500.0,0.00041973,7]
[392466401,1761519043663,-500.0,0.00041973,7]
[392466403,1761519043675,-500.0,0.00041973,7]
[392466405,1761519043685,-500.0,0.00041973,30]
[392466407,1761519043695,-1000.0,0.00041973,2]
[392466410,1761519043706,-500.0,0.00042,7]
[392466412,1761519043716,-500.0,0.00042,7]
[392466414,1761519043727,-200.36794216,0.00042,7]
[392466416,1761519043740,-205.02200364,0.00042,7]
[392466418,1761519043750,-150.0,0.00042,7]
[392466420,1761519043761,-300.0,0.00042,7]
[392466422,1761519043771,-3294.0,0.00042,7]
[392466424,1761519043782,-500.0,0.00042,2]
[392466426,1761519043792,-500.0,0.00042,7]
[392466428,1761519043803,-500.0,0.00042,7]
[392466431,1761519043815,-500.0,0.00042,7]
[392466433,1761519043825,-500.0,0.00042,30]
[392466435,1761519043835,-670.5,0.00042027,2]
[392466454,1761519043846,-500.0,0.00042028,7]
[392466457,1761519044044,-297.33789472,0.00042028,7]
[392466459,1761519044055,-215.90836741,0.00042028,7]
[392466461,1761519044065,-300.0,0.00042028,7]
[392466464,1761519044076,-3294.0,0.00042028,7]
[392466466,1761519044086,-500.0,0.00042028,2]
[392466467,1761519044096,-500.0,0.00042028,7]
[392466470,1761519044105,-500.0,0.00042028,7]
[392466472,1761519044115,-500.0,0.00042028,7]
[392466474,1761519044125,-500.0,0.00042028,30]
[392466476,1761519044136,-1862.2998035,0.00042037,15]
[392466478,1761519044145,-500.0,0.00042055,7]
[392466480,1761519044155,-300.0,0.00042055,7]
[392466482,1761519044166,-3294.0,0.00042055,7]
[392466484,1761519044176,-500.0,0.00042055,2]
[392466486,1761519044186,-500.0,0.00042055,7]
[392466488,1761519044196,-500.0,0.00042055,7]
[392466490,1761519044206,-500.0,0.00042055,7]
[392466492,1761519044216,-500.0,0.00042055,30]
[392466494,1761519044227,-500.0,0.00042072,7]
[392466496,1761519044238,-25000.0,0.00042073,2]
[392466498,1761519044248,-500.0,0.00042082,7]
[392466500,1761519044258,-300.0,0.00042082,7]
[392466502,1761519044268,-3294.0,0.00042082,7]
[392466504,1761519044279,-500.0,0.00042082,2]
[392466506,1761519044289,-500.0,0.00042082,7]
[392466508,1761519044298,-500.0,0.00042082,7]
[392466510,1761519044308,-500.0,0.00042082,7]
[392466512,1761519044318,-491.62463628,0.00042082,30]